bitfinex/quotes_ETHUSD_20240822
["timestamp","ask_amount","ask_price","bid_price","bid_amount"]
[1724335317637,1.98827354,2621.7,2621.6,3.81446]
[1724335317638,1.59512518,2621.7,2621.6,3.81446]
[1724335317837,1.5909039,2621.8,2621.6,3.81446]
[1724335318097,1.5909039,2621.8,2621.7,3.81431]
[1724335318302,4.44627354,2621.9,2621.8,3.81417]
[1724335318303,1.59103547,2621.9,2621.8,3.81417]
[1724335318443,1.59103547,2621.9,2621.2,4.58829106]
[1724335318444,1.59103547,2622.0,2621.9,3.81402]
[1724335318638,1.59121721,2622.1,2621.9,3.81402]
[1724335318893,1.98827354,2622.2,2621.5,3.81453]
[1724335318894,1.59121721,2622.2,2621.5,3.81453]
[1724335319120,3.04,2622.3,2622.2,3.81359]
[1724335319387,3.04,2622.3,2622.0,3.81379]
[1724335319388,4.63133307,2622.3,2622.0,3.81379]
[1724335319693,1.59168822,2622.2,2622.0,3.81379]
[1724335320255,1.59168822,2622.2,2622.0,3.81376]
[1724335320574,1.66769871,2622.2,2622.0,3.81376]
[1724335320752,4.42122543,2622.2,2621.7,3.81422]
[1724335320960,4.42122543,2622.2,2621.6,3.81444]
[1724335320961,1.59138685,2622.1,2621.6,3.81444]
[1724335321163,1.66739734,2622.0,2621.6,3.81434]
[1724335321361,1.66739734,2622.0,2621.7,3.81427]
[1724335321362,1.59138685,2621.9,2621.7,3.81427]
[1724335321543,1.66739734,2622.0,2621.7,3.81427]
[1724335321901,1.59138685,2622.0,2621.8,3.81415]
[1724335322040,1.98951494,2622.0,2621.6,3.81434]
[1724335322241,1.66714298,2621.9,2621.4,7.62934]
[1724335322490,1.59113249,2621.8,2621.4,3.81466]
[1724335322691,6.31865049,2621.7,2621.2,3.81493]
[1724335322857,1.59113249,2621.6,2621.2,7.62988]
[1724335323198,4.01943249,2621.7,2621.4,3.81475]
[1724335323789,1.59113249,2621.6,2621.4,3.81475]
[1724335324217,4.41675813,2621.7,2621.4,3.81475]
[1724335324218,4.01943249,2621.7,2621.4,3.81475]
[1724335324417,4.01943249,2621.7,2621.4,3.81466]
[1724335325222,1.59113249,2621.5,2621.0,3.9183006]
[1724335325438,1.59113249,2621.3,2621.0,3.9183006]
[1724335325717,1.98845813,2621.5,2621.0,3.9183006]
[1724335325718,1.59113249,2621.5,2621.3,3.8149]
[1724335325920,1.98845813,2621.6,2621.2,3.81496]
[1724335325921,1.59113249,2621.6,2621.2,3.81496]
[1724335326320,1.59113249,2621.6,2621.2,3.81494]
[1724335326474,1.59113249,2621.5,2621.2,3.81494]
[1724335326791,1.59113249,2621.6,2621.3,3.81479]
[1724335327176,4.01943249,2621.7,2621.3,3.81479]
[1724335327817,1.59113249,2621.8,2621.4,3.8147]
[1724335327986,4.98845813,2621.9,2621.2,3.81498]
[1724335327987,1.59113249,2621.7,2621.2,3.81498]
[1724335328188,1.59113249,2621.9,2621.7,3.81418]
[1724335328403,1.59113249,2621.8,2621.5,3.81449]
[1724335328827,1.59113249,2621.8,2621.7,3.81431]
[1724335328976,1.59113249,2621.9,2621.7,3.81431]
[1724335329304,1.59113249,2621.9,2621.6,3.81443]
[1724335329507,1.59113249,2621.9,2621.5,3.81449]
[1724335329508,1.59113249,2621.8,2621.5,3.81449]
[1724335329706,1.59113249,2621.8,2621.3,3.81481]
[1724335329707,1.59113249,2621.6,2621.3,3.81481]
[1724335329889,1.59113249,2621.6,2621.1,3.8151]
[1724335330230,1.59113249,2621.3,2621.0,0.1030806]
[1724335330433,1.66714298,2621.2,2621.0,0.1030806]
[1724335330720,5.48222298,2621.2,2621.0,0.1030806]
[1724335331035,1.59113249,2621.1,2621.0,0.1030806]
[1724335331192,17.80878,2621.1,2621.0,0.1030806]
[1724335331372,22.17397,2621.1,2621.0,0.1030806]
[1724335331578,27.55674883,2621.1,2621.0,0.1030806]
[1724335331980,25.17397,2621.1,2621.0,0.1030806]
[1724335332328,2.3192,2620.2,2619.6,3.81728]
[1724335332621,0.07601049,2620.1,2619.4,7.63517]
[1724335332787,0.07601049,2620.1,2619.4,4.199312]
[1724335332989,5.3192,2620.2,2619.6,3.81725]
[1724335333205,5.39521049,2620.2,2619.6,3.81725]
[1724335333621,5.39521049,2620.2,2619.8,3.81707]
[1724335333622,5.3192,2620.2,2619.8,3.81707]
[1724335333825,0.07601049,2620.2,2619.6,3.81725]
[1724335333984,0.07601049,2620.2,2619.4,3.81757]
[1724335334320,0.07601049,2620.2,2619.6,3.81728]
[1724335334523,9.31546,2620.3,2618.9,6.28974]
[1724335334524,5.4991,2620.3,2619.8,3.81695]
[1724335334918,5.4991,2620.3,2619.8,7.63394]
[1724335335132,5.4991,2620.3,2619.8,3.81695]
[1724335335811,3.81665,2620.1,2619.6,3.81734]
[1724335336008,3.81665,2620.1,2619.4,3.81762]
[1724335336009,0.07601049,2620.0,2619.4,3.81762]
[1724335336326,3.81696,2619.9,2619.2,3.81785]
[1724335336476,3.81679,2620.0,2619.2,3.81785]
[1724335336679,7.63371,2620.0,2619.4,3.81765]
[1724335336937,7.63371,2620.0,2618.8,3.81852]
[1724335336938,3.81777,2619.4,2618.8,3.81853]
[1724335337094,2.376,2619.8,2618.8,3.81853]
[1724335337095,3.81742,2619.6,2618.9,3.81838]
[1724335337284,3.81742,2619.6,2619.0,3.81824]
[1724335337879,3.81753,2619.5,2618.9,3.81829]
[1724335338221,3.81741,2619.6,2619.0,3.81813]
[1724335338982,2.376,2619.8,2619.5,3.81742]
[1724335339319,2.4354,2620.2,2619.7,3.81714]
[1724335339527,3.81696,2619.9,2619.3,3.8177]
[1724335339839,2.4354,2620.2,2619.3,3.81769]
[1724335339840,0.07601049,2619.8,2619.3,3.81769]
[1724335340384,3.89336049,2619.7,2619.1,3.81802]
[1724335340599,3.89336049,2619.7,2618.9,3.81826]
[1724335340600,6.20239,2619.6,2618.9,3.81826]
[1724335340804,3.89361049,2619.5,2618.9,3.81826]
[1724335341440,3.81769,2619.4,2618.9,3.81826]
[1724335341634,0.07601049,2619.3,2618.9,3.81826]
[1724335341940,2.385,2619.6,2619.2,3.8179]
[1724335342144,2.385,2619.6,2619.2,3.81786]
[1724335343142,3.81703,2619.9,2619.2,3.81786]
[1724335343320,3.81711,2619.8,2619.2,3.81786]
[1724335343635,2.4473,2620.0,2619.4,3.81764]
[1724335343844,3.0,2620.1,2619.6,3.81732]
[1724335344140,2.289,2620.2,2619.8,3.81703]
[1724335344315,2.289,2620.2,2619.4,0.381764]
[1724335344316,2.289,2620.2,2619.6,3.8173]
[1724335344482,3.89269049,2620.1,2619.4,3.81759]
[1724335344935,3.81668,2620.1,2619.4,3.81759]
[1724335345287,3.81668,2620.1,2619.6,3.81737]
[1724335345693,2.289,2620.2,2619.8,3.817]
[1724335345890,2.289,2620.2,2618.6,3.81872]
[1724335345891,3.04,2620.3,2620.0,3.81668]
[1724335346204,3.04,2620.3,2620.2,7.633]
[1724335346388,2.3187,2620.8,2620.5,3.81605]
[1724335346590,8.1687,2621.2,2620.3,3.81628]
[1724335346808,3.81522,2621.1,2620.3,3.81627]
[1724335347014,8.1687,2621.2,2620.3,6.27146]
[1724335347353,8.1687,2621.2,2620.8,3.81561]
[1724335347654,8.1687,2621.2,2620.8,3.81553]
[1724335347819,5.85,2621.2,2620.6,3.81584]
[1724335348020,9.66508,2621.2,2620.6,3.81584]
[1724335348410,0.07601049,2621.1,2620.5,3.81605]
[1724335348927,5.85,2621.2,2620.6,3.81582]
[1724335349126,5.85,2621.2,2620.1,6.2142]
[1724335349127,5.85,2621.2,2620.7,3.81573]
[1724335349307,5.85,2621.2,2620.9,3.81538]
[1724335349508,5.85,2621.2,2621.1,3.81519]
[1724335350119,2.81,2621.2,2621.1,3.81519]
[1724335350528,2.81,2621.2,2621.0,3.81533]
[1724335350730,2.81,2621.2,2621.1,3.81519]
[1724335351025,2.81,2621.2,2620.5,2.4286]
[1724335351026,2.81,2621.2,2620.9,3.81536]
[1724335351234,2.81,2621.2,2621.0,3.81533]
[1724335352059,2.81,2621.2,2621.1,3.81519]
[1724335352232,2.81,2621.2,2621.0,3.81533]
[1724335352648,2.81,2621.2,2621.0,7.63057]
[1724335352824,2.81,2621.2,2621.0,3.81524]
[1724335353769,2.81,2621.2,2620.8,3.81555]
[1724335353982,2.81,2621.2,2620.6,3.81581]
[1724335354138,0.07601049,2621.1,2620.7,3.81575]
[1724335354334,2.81,2621.2,2620.6,3.81581]
[1724335354335,2.81,2621.2,2620.8,3.81561]
[1724335354534,2.81,2621.2,2620.8,3.81552]
[1724335354719,2.81,2621.2,2620.8,7.63105]
[1724335355231,2.81,2621.2,2620.9,3.81547]
[1724335355431,2.81,2621.2,2620.9,3.81537]
[1724335355667,2.81,2621.2,2620.7,3.81567]
[1724335356017,2.81,2621.2,2620.8,3.81553]
[1724335356218,2.81,2621.2,2620.7,7.63131]
[1724335356441,2.81,2621.2,2620.7,3.81564]
[1724335356769,2.81,2621.2,2620.8,3.81562]
[1724335357186,2.81,2621.2,2621.1,3.81519]
[1724335357469,3.04,2621.7,2621.5,3.81448]
[1724335357819,3.04,2621.7,2621.6,3.81446]
[1724335358042,2.81,2622.2,2621.6,3.81446]
[1724335358260,3.81375,2622.1,2621.6,3.81446]
[1724335358472,3.81375,2622.1,2621.5,3.81447]
[1724335358651,3.81375,2622.1,2621.6,3.81444]
[1724335358853,3.81391,2622.0,2621.4,3.81461]
[1724335359258,3.81375,2622.1,2621.4,3.81461]
[1724335359440,2.81,2622.2,2621.1,0.381519]
[1724335359770,2.81,2622.2,2621.9,3.81393]
[1724335360070,2.81,2622.2,2621.7,3.81419]
[1724335360284,2.81,2622.2,2622.0,3.81379]
[1724335360424,2.81,2622.2,2621.8,3.81404]
[1724335361027,0.07601049,2622.1,2621.6,3.81434]
[1724335361467,6.6236,2622.2,2621.4,3.81467]
[1724335361468,2.4225,2622.0,2621.4,3.81469]
[1724335361673,2.81,2622.2,2621.2,2.4965]
[1724335361674,2.81,2622.2,2621.6,3.81438]
[1724335362407,6.62361,2622.2,2621.6,7.62873]
[1724335362575,6.62361,2622.2,2621.7,3.81429]
[1724335363073,3.81389,2622.0,2621.2,3.81492]
[1724335363276,3.81439,2621.7,2621.1,3.81518]
[1724335363658,10.09931,2621.8,2621.2,3.81502]
[1724335363863,10.09932,2621.8,2621.2,3.81502]
[1724335364108,3.81435,2621.7,2621.2,3.81502]
[1724335364415,6.28505,2621.8,2621.2,3.81496]
[1724335364576,3.81456,2621.6,2621.0,3.81526]
[1724335364780,3.81435,2621.7,2620.8,3.81548]
[1724335365107,3.07601049,2621.7,2620.6,3.81582]
[1724335365276,3.81503,2621.3,2620.6,3.81582]
[1724335365477,6.3015,2621.1,2620.6,3.81582]
[1724335365667,2.4863,2621.1,2620.6,3.81582]
[1724335366302,0.07601049,2621.0,2620.4,3.81614]
[1724335366612,0.07601049,2621.0,2620.5,3.81596]
[1724335366766,0.07601049,2621.0,2620.7,3.81576]
[1724335367111,3.81497,2621.3,2620.7,3.81567]
[1724335367419,3.07601049,2621.2,2620.7,3.81567]
[1724335367620,6.89106049,2621.2,2620.7,3.81567]
[1724335368514,3.0,2621.2,2620.8,3.8156]
[1724335368717,2.4383,2621.5,2620.9,3.81541]
[1724335369016,9.25303,2621.5,2620.9,3.81539]
[1724335369182,3.81476,2621.4,2620.8,3.81561]
[1724335369403,3.81492,2621.3,2620.7,7.63132]
[1724335369611,5.4383,2621.5,2620.9,3.81538]
[1724335369805,5.4383,2621.5,2621.0,3.81532]
[1724335370123,5.4383,2621.5,2620.9,3.81538]
[1724335370633,5.4383,2621.5,2620.7,7.63139]
[1724335370634,3.81504,2621.2,2620.7,7.63139]
[1724335370837,3.81479,2621.4,2620.7,7.63139]
[1724335371022,3.81479,2621.4,2620.7,3.81568]
[1724335371219,3.0,2621.5,2621.1,3.8151]
[1724335371444,3.0,2621.6,2621.2,3.81502]
[1724335371735,3.81479,2621.4,2620.9,3.81544]
[1724335371959,6.81446,2621.6,2621.0,3.81526]
[1724335372110,10.629,2621.6,2621.0,3.81526]
[1724335372566,3.81462,2621.5,2621.0,3.81526]
[1724335373256,3.81479,2621.4,2620.8,3.8155]
[1724335373459,3.81507,2621.2,2620.7,3.81568]
[1724335373811,3.81479,2621.4,2620.9,3.81545]
[1724335374208,3.81491,2621.3,2620.9,3.81545]
[1724335374442,3.81491,2621.3,2620.7,3.81564]
[1724335374645,3.81491,2621.3,2620.7,7.63133]
[1724335376154,3.81462,2621.5,2620.9,3.81534]
[1724335376321,3.81476,2621.4,2620.7,3.81564]
[1724335376657,2.3644,2621.3,2620.9,3.81545]
[1724335376829,3.81479,2621.4,2620.9,7.63085]
[1724335377052,5.2835,2621.6,2620.4,2.446]
[1724335377231,7.27,2621.7,2620.9,2.4267]
[1724335377430,3.04,2621.8,2620.9,2.4267]
[1724335377431,3.04,2621.8,2621.4,3.81468]
[1724335377635,3.04,2621.8,2621.6,3.81445]
[1724335377835,3.04,2621.8,2621.4,3.81466]
[1724335378051,3.04,2621.8,2621.5,3.81453]
[1724335378366,3.04,2621.8,2621.7,3.81431]
[1724335378689,3.04,2621.8,2621.6,3.81444]
[1724335378842,3.04,2621.8,2621.4,3.81465]
[1724335379577,3.81396,2622.0,2621.5,3.81457]
[1724335379779,2.81,2622.2,2621.7,3.81425]
[1724335380151,6.62367,2622.2,2621.7,3.81425]
[1724335380367,6.62367,2622.2,2621.6,0.07628536]
[1724335380368,2.81,2622.2,2621.6,0.07628536]
[1724335380656,2.81,2622.2,2621.4,2.3376]
[1724335380657,7.86820191,2622.4,2622.0,3.81374]
[1724335380879,0.07601049,2622.3,2621.6,3.81432]
[1724335381091,3.81379,2622.1,2621.2,7.35]
[1724335381267,7.62858,2621.8,2621.0,3.81524]
[1724335381478,3.81427,2621.8,2621.2,3.81503]
[1724335381985,3.81427,2621.8,2621.3,3.81481]
[1724335382180,3.81427,2621.8,2621.2,3.81503]
[1724335382181,3.81408,2621.9,2621.4,3.81475]
[1724335382379,3.81408,2621.9,2620.8,6.28659]
[1724335382380,2.4509,2622.0,2621.5,3.81449]
[1724335382656,9.2648,2622.0,2621.5,3.81449]
[1724335383153,5.4509,2622.0,2621.3,3.81481]
[1724335383353,5.4509,2622.0,2620.8,6.28657]
[1724335383354,3.81435,2621.7,2621.2,3.815]
[1724335383868,7.70430049,2621.9,2621.3,3.81488]
[1724335384081,7.6283,2621.9,2621.3,3.81488]
[1724335384283,3.81422,2621.8,2621.3,3.81488]
[1724335384520,3.81418,2621.8,2621.3,3.81482]
[1724335385005,7.62828,2621.9,2621.3,3.81482]
[1724335385204,7.62828,2621.9,2621.4,3.81467]
[1724335385205,3.81414,2621.9,2621.4,3.81467]
[1724335385539,3.81414,2621.9,2620.9,3.81543]
[1724335385540,2.4509,2622.0,2621.5,3.81454]
[1724335385896,6.26487,2622.0,2621.5,3.81454]
[1724335386306,3.81417,2621.8,2621.3,3.81482]
[1724335387027,6.26487,2622.0,2621.3,3.81481]
[1724335387210,6.26487,2622.0,2621.4,3.81466]
[1724335387543,11.65588408,2622.0,2621.4,3.81466]
[1724335388144,7.84191408,2622.0,2621.4,3.81466]
[1724335388339,11.65588408,2622.0,2621.4,3.81466]
[1724335388543,11.65588408,2622.0,2621.5,3.81458]
[1724335388844,6.22793,2621.4,2620.6,2.482]
[1724335389144,3.89101049,2621.3,2620.2,6.29843]
[1724335389347,3.89101049,2621.3,2620.6,3.81591]
[1724335389348,2.3454,2621.0,2620.6,3.81591]
[1724335389502,2.3454,2621.0,2620.6,7.63182]
[1724335389697,2.3454,2621.0,2620.6,3.81591]
[1724335389895,2.3454,2621.0,2620.6,7.63175]
[1724335390099,2.3454,2621.0,2620.6,3.81584]
[1724335390400,2.3454,2621.0,2620.9,3.81548]
[1724335390630,6.92864408,2621.3,2620.9,3.81548]
[1724335390830,2.3516,2621.3,2621.1,3.81518]
[1724335390994,1.57704408,2621.4,2621.0,7.63056]
[1724335391201,1.57704408,2621.4,2621.0,3.81523]
[1724335391399,8.39193408,2621.4,2620.9,3.81547]
[1724335391736,2.3516,2621.1,2620.6,3.8158]
[1724335392029,2.3516,2621.1,2620.7,3.81567]
[1724335392237,2.3516,2621.1,2620.8,3.81559]
[1724335392238,3.92864408,2621.1,2620.8,3.81559]
[1724335393327,7.74383408,2621.1,2620.6,3.81584]
[1724335393499,3.81564,2620.8,2620.2,7.63279]
[1724335393704,3.81564,2620.8,2619.9,2.3429]
[1724335393705,2.4936,2620.6,2619.9,2.3429]
[1724335394039,1.65305457,2620.7,2620.4,3.81619]
[1724335394040,1.57704408,2620.7,2620.4,3.81619]
[1724335394407,1.57704408,2620.7,2620.3,3.81635]
[1724335395353,1.65305457,2620.7,2619.9,6.15975]
[1724335395556,2.2924,2620.5,2619.9,3.81685]
[1724335395707,3.89223049,2620.4,2619.9,3.81684]
[1724335396135,5.46927457,2620.4,2619.9,3.81684]
[1724335396363,5.46927457,2620.4,2619.7,3.81714]
[1724335396509,5.39393408,2620.0,2619.4,3.81765]
[1724335396710,6.08522,2619.8,2619.2,3.81787]
[1724335396998,3.89324049,2619.7,2619.2,3.81787]
[1724335397119,3.81739,2619.6,2619.0,3.81822]
[1724335397457,0.07601049,2619.5,2619.0,3.81822]
[1724335397662,0.07601049,2619.5,2618.9,3.81835]
[1724335397962,1.65305457,2619.5,2618.9,3.81835]
[1724335398369,1.65305457,2619.5,2618.8,3.81844]
[1724335398370,3.81772,2619.4,2618.8,3.81844]
[1724335398510,2.55421049,2619.3,2618.6,3.8187]
[1724335398709,2.4782,2619.3,2618.8,3.81853]
[1724335399154,8.893,2619.5,2618.9,3.81837]
[1724335399309,3.0,2619.5,2618.8,3.81853]
[1724335399518,6.81761,2619.5,2618.8,3.8184]
[1724335399724,5.893,2619.2,2618.4,3.9464403]
[1724335399951,5.893,2619.2,2618.4,0.1273803]
[1724335399952,3.8184,2618.9,2618.4,0.1273803]
[1724335400153,0.07601049,2618.8,2618.4,0.1273803]
[1724335400365,0.07601049,2618.8,2618.4,3.9464903]
[1724335401182,0.07601049,2618.8,2618.4,0.1273803]
[1724335401383,7.27,2619.1,2618.4,0.1273803]
[1724335401677,7.27,2619.1,2618.6,3.8188]
[1724335401885,7.27,2619.1,2618.7,3.81867]
[1724335402025,7.27,2619.1,2618.7,3.81857]
[1724335403140,7.27,2619.1,2618.7,3.81865]
[1724335403386,7.27,2619.1,2618.7,7.63723]
[1724335403724,3.04,2619.3,2618.4,2.6184803]
[1724335403866,3.04,2619.3,2618.8,3.81844]
[1724335404076,3.04,2619.3,2618.6,3.81873]
[1724335404077,0.07601049,2619.2,2618.6,3.81873]
[1724335404296,3.04,2619.3,2618.6,3.81872]
[1724335404582,3.04,2619.3,2618.7,0.07636918]
[1724335404913,3.04,2619.3,2619.0,3.81815]
[1724335405218,2.81,2619.5,2619.2,3.81795]
[1724335405411,2.81,2619.5,2619.1,3.818]
[1724335405615,2.81,2619.5,2618.9,3.81828]
[1724335405803,2.81,2619.5,2619.0,3.81815]
[1724335405974,2.81,2619.5,2619.0,0.763643]
[1724335406316,6.6276,2619.5,2618.9,3.81831]
[1724335406520,6.6276,2619.5,2618.7,3.81861]
[1724335406521,2.4542,2619.4,2618.7,3.81861]
[1724335406683,3.81809,2619.2,2618.6,3.8188]
[1724335407508,3.89410049,2619.2,2618.6,3.8188]
[1724335407669,3.89410049,2619.2,2618.5,3.81889]
[1724335407670,3.81789,2619.3,2618.7,3.81868]
[1724335407875,3.81789,2619.3,2618.7,3.8186]
[1724335408182,7.63578,2619.3,2618.7,3.8186]
[1724335408413,3.81789,2619.3,2618.7,3.8186]
[1724335408770,3.81789,2619.3,2618.8,3.81852]
[1724335408970,2.4542,2619.4,2618.9,3.81836]
[1724335409224,6.27191,2619.4,2618.9,3.81836]
[1724335409541,6.27191,2619.4,2618.7,3.8186]
[1724335409542,3.81784,2619.3,2618.7,3.8186]
[1724335409699,7.63576,2619.3,2618.7,3.81855]
[1724335409898,0.07601049,2619.2,2618.5,3.81886]
[1724335410131,3.81842,2618.9,2618.3,3.81917]
[1724335410267,0.07601049,2618.8,2618.0,9.6838]
[1724335410471,3.89478049,2618.7,2618.1,3.81948]
[1724335411004,3.89478049,2618.7,2618.0,7.35]
[1724335411005,2.4542,2618.6,2618.0,7.35]
[1724335411210,2.4542,2618.6,2618.1,3.81947]
[1724335411738,0.07601049,2618.5,2618.0,11.16966]
[1724335412092,2.4542,2618.6,2618.1,3.81955]
[1724335412405,6.81846,2618.9,2618.1,3.81946]
[1724335412623,6.81846,2618.9,2618.3,3.81915]
[1724335413115,3.0,2618.9,2618.3,3.81915]
[1724335413323,3.0,2618.9,2618.5,3.81896]
[1724335413819,5.4942,2619.0,2618.7,3.81868]
[1724335414025,2.81,2619.5,2618.7,0.381868]
[1724335414233,2.81,2619.5,2618.2,2.3338]
[1724335414234,2.81,2619.5,2618.6,3.81875]
[1724335414369,2.81,2619.5,2618.6,3.81882]
[1724335414370,7.63618,2619.2,2618.6,3.81882]
[1724335414566,3.81809,2619.2,2618.6,3.81882]
[1724335414785,7.63619,2619.2,2618.6,3.81874]
[1724335415020,7.63614,2619.2,2618.6,3.81874]
[1724335415218,2.2829,2619.0,2618.4,3.9463903]
[1724335415525,0.07601049,2618.9,2618.4,0.1273803]
[1724335415677,3.81883,2618.6,2618.4,0.1273803]
[1724335416020,3.81878,2618.7,2618.4,0.1273803]
[1724335416220,3.89493049,2618.6,2618.4,0.1273803]
[1724335416524,3.81892,2618.6,2618.4,0.1273803]
[1724335417217,3.81878,2618.7,2618.4,0.1273803]
[1724335417872,6.10118,2619.0,2618.4,3.9464303]
[1724335418073,3.0,2618.9,2618.4,3.9464303]
[1724335418820,3.0,2618.9,2618.5,3.81897]
[1724335419720,3.0,2618.9,2618.5,7.63776]
[1724335419921,3.0,2619.0,2618.5,3.81895]
[1724335420123,3.04,2619.2,2618.6,3.81873]
[1724335420327,3.04,2619.2,2618.8,3.81843]
[1724335420472,3.04,2619.2,2618.7,3.81859]
[1724335420677,3.81832,2619.0,2618.4,3.9464003]
[1724335420876,3.81832,2619.0,2618.5,3.81893]
[1724335421573,3.04,2619.2,2618.5,4.59548403]
[1724335421807,3.04,2619.2,2618.7,3.81866]
[1724335421808,6.85799,2619.2,2618.7,3.81866]
[1724335422167,3.04,2619.2,2618.8,3.81852]
[1724335422521,3.04,2619.2,2618.9,3.81838]
[1724335422671,3.04,2619.2,2618.7,3.81854]
[1724335422993,9.92011,2619.1,2618.5,3.81888]
[1724335423197,3.04,2619.2,2618.7,3.81857]
[1724335423390,3.04,2619.2,2618.6,3.81882]
[1724335423591,6.85798,2619.2,2618.7,3.81868]
[1724335423804,3.8181,2619.1,2618.6,3.81882]
[1724335424021,3.04,2619.2,2618.6,3.81876]
[1724335424230,3.04,2619.2,2618.7,3.81861]
[1724335424522,3.04,2619.2,2618.7,0.763737]
[1724335424829,3.04,2619.2,2618.8,3.81853]
[1724335425325,3.04,2619.2,2618.9,3.81838]
[1724335425699,3.04,2619.2,2619.0,3.81815]
[1724335425939,3.04,2619.2,2618.6,2.3984]
[1724335425940,3.04,2619.2,2619.1,3.8181]
[1724335426116,2.81,2619.5,2619.2,3.81795]
[1724335426319,2.81,2619.5,2619.2,3.81787]
[1724335426513,6.62759,2619.5,2619.0,3.81817]
[1724335426716,3.81779,2619.4,2618.9,3.81838]
[1724335426909,6.62759,2619.5,2618.9,3.81838]
[1724335426910,10.44521,2619.5,2618.9,3.81838]
[1724335427161,6.62759,2619.5,2619.0,3.81823]
[1724335427516,2.81,2619.5,2619.1,3.81809]
[1724335427903,2.81,2619.5,2619.1,7.63611]
[1724335428261,2.81,2619.5,2619.1,7.63603]
[1724335428399,3.81773,2619.4,2618.9,3.81829]
[1724335428722,3.81773,2619.4,2618.6,2.3984]
[1724335428723,3.81782,2619.3,2618.7,3.81854]
[1724335428898,6.12876,2619.4,2618.9,3.81834]
[1724335429346,9.94654,2619.4,2618.9,3.81834]
[1724335429551,9.94654,2619.4,2618.7,0.621694]
[1724335429552,3.81807,2619.2,2618.7,3.81858]
[1724335429782,3.89419049,2619.1,2618.5,3.81887]
[1724335430370,3.81826,2619.0,2618.5,3.81887]
[1724335430594,3.81826,2619.0,2618.4,0.1273803]
[1724335430595,3.81826,2619.0,2618.4,3.9464903]
[1724335430733,3.81826,2619.0,2618.4,3.9463903]
[1724335430921,3.81826,2619.0,2618.5,3.81895]
[1724335431326,3.81811,2619.1,2618.6,7.63756]
[1724335431582,2.302,2619.1,2618.4,0.1273803]
[1724335431724,3.81898,2618.5,2618.4,0.1273803]
[1724335432025,7.63796,2618.5,2618.4,0.1273803]
[1724335432235,9.93996,2618.5,2618.4,0.1273803]
[1724335432880,16.75894,2618.5,2618.4,0.1273803]
[1724335435384,17.30894,2618.5,2618.4,0.1273803]
[1724335435731,12.93996,2618.5,2618.4,0.1273803]
[1724335436580,16.75894,2618.5,2618.4,0.1273803]
[1724335437305,12.93996,2618.5,2618.4,0.1273803]
[1724335438272,16.75894,2618.5,2618.4,0.1273803]
[1724335438458,12.93996,2618.5,2618.4,0.1273803]
[1724335438634,6.12098,2618.5,2618.4,0.1273803]
[1724335438835,3.81898,2618.5,2618.4,0.1273803]
[1724335439291,6.62878,2618.7,2618.4,0.1273803]
[1724335439433,2.81,2618.7,2618.4,0.1273803]
[1724335439858,3.81891,2618.6,2618.4,0.1273803]
[1724335440075,3.81898,2618.5,2618.4,0.1273803]
[1724335440984,13.99795049,2618.5,2618.4,0.1273803]
[1724335441216,19.12499457,2618.5,2618.4,0.1273803]
[1724335441383,19.52759219,2618.5,2618.4,0.1273803]
[1724335441715,17.54795049,2618.5,2618.4,0.1273803]
[1724335442075,17.47194,2618.5,2618.4,0.1273803]
[1724335442609,15.08367913,2618.5,2618.4,0.1273803]
[1724335442912,2.18359125,2618.5,2618.4,0.1273803]
[1724335443088,0.59904762,2618.5,2618.4,0.1273803]
[1724335443409,2.81,2618.7,2618.4,0.1273803]
[1724335443610,6.62872,2618.7,2618.4,0.1273803]
[1724335443919,3.66354092,2618.6,2618.4,0.1273803]
[1724335444213,2.81,2618.7,2618.4,0.1273803]
[1724335444413,0.07601049,2618.6,2618.4,0.1273803]
[1724335444581,3.81892,2618.6,2618.4,0.1273803]
[1724335444911,7.63796,2618.5,2618.4,0.1273803]
[1724335445283,3.81898,2618.5,2618.4,0.1273803]
[1724335445694,5.40352363,2618.5,2618.4,0.1273803]
[1724335445897,1.58454363,2618.6,2618.4,0.1273803]
[1724335446470,5.40344363,2618.6,2618.4,0.1273803]
[1724335446716,4.39454363,2618.7,2618.4,0.1273803]
[1724335446896,2.81,2618.7,2618.4,0.52203733]
[1724335447095,9.39811583,2618.9,2618.4,0.52203733]
[1724335447096,1.58454363,2618.9,2618.5,6.28367]
[1724335447293,1.58454363,2619.0,2618.7,3.81868]
[1724335447492,1.58454363,2619.0,2618.6,3.81874]
[1724335447684,5.02069628,2619.1,2618.7,3.81856]
[1724335447685,4.62454363,2619.1,2618.7,3.81856]
[1724335447890,3.04,2619.1,2618.9,3.81835]
[1724335449106,1.58454363,2619.4,2619.1,3.81809]
[1724335449308,4.79069628,2619.5,2619.3,3.81781]
[1724335449309,2.81,2619.5,2619.3,3.81781]
[1724335449623,2.81,2619.5,2619.1,3.818]
[1724335449840,0.07601049,2619.4,2618.9,2.334]
[1724335450129,3.81791,2619.3,2618.9,2.334]
[1724335450425,3.81791,2619.3,2618.9,2.949259]
[1724335450733,5.40245363,2619.3,2618.9,2.949259]
[1724335451025,1.58454363,2619.4,2618.9,2.949259]
[1724335451375,5.40240363,2619.3,2618.9,2.949259]
[1724335451574,5.40240363,2619.3,2618.6,2.4731]
[1724335451575,1.58454363,2619.3,2618.6,2.4731]
[1724335451819,4.7913245,2619.5,2618.4,3.9463803]
[1724335451820,3.8184,2618.9,2618.4,0.1273803]
[1724335452619,1.58454363,2619.0,2618.4,3.9464103]
[1724335453004,5.40282363,2619.0,2618.4,7.7654403]
[1724335453207,0.07601049,2618.9,2618.4,0.1273803]